bitfinex/quotes_ETHUSD_20260310
["timestamp","ask_amount","ask_price","bid_price","bid_amount"]
[1773184688063,0.46366591,2035.4,2034.9,0.001]
[1773184688064,0.46366591,2035.3,2034.9,0.001]
[1773184688259,0.46366591,2035.1,2034.9,0.001]
[1773184688834,0.46366591,2035.5,2034.9,0.4744432]
[1773184690648,1.2282598,2035.4,2035.0,1.22850122]
[1773184690933,1.69192571,2035.4,2035.0,1.22850122]
[1773184692366,1.69192571,2035.4,2034.9,1.70296933]
[1773184692566,0.46366591,2035.3,2034.9,1.70296933]
[1773184693057,0.46366591,2035.2,2034.9,1.22952613]
[1773184693259,0.46366591,2035.2,2034.9,0.001]
[1773184694771,0.46366591,2035.2,2034.9,1.22955717]
[1773184695172,4.91311202,2035.4,2034.9,1.70300037]
[1773184695173,1.69197398,2035.4,2034.9,1.70300037]
[1773184695771,0.46366591,2035.3,2034.9,1.70300037]
[1773184696967,0.46366591,2035.3,2034.9,0.4744432]
[1773184697168,0.46366591,2035.3,2034.9,1.2295499]
[1773184697471,1.69197398,2035.4,2035.0,0.4734432]
[1773184700370,1.22830807,2035.4,2035.2,0.001]
[1773184702177,1.70818298,2035.5,2035.2,0.001]
[1773184704877,0.4799462,2035.4,2035.2,0.001]
[1773184706481,1.70826634,2035.3,2035.2,0.001]
[1773184706676,0.4799462,2035.3,2035.2,0.001]
[1773184707252,1.70822387,2035.4,2035.2,0.001]
[1773184707463,1.70824023,2035.4,2035.2,0.001]
[1773184707683,1.22823725,2035.5,2035.2,0.4811305]
[1773184707977,1.70813225,2035.6,2035.2,0.4811305]
[1773184708187,0.4819462,2035.8,2035.2,0.4811305]
[1773184708375,0.002,2035.8,2035.4,0.4801305]
[1773184709176,0.4819462,2035.8,2035.4,0.4801305]
[1773184709378,0.002,2035.8,2035.4,0.4801305]
[1773184710557,0.002,2035.8,2035.4,1.22820276]
[1773184710761,0.002,2035.8,2035.5,0.4801305]
[1773184712889,0.002,2035.8,2035.6,1.70826962]
[1773184718575,0.002,2035.8,2035.6,0.4801305]
[1773184718777,0.4819462,2035.8,2035.3,3.33740153]
[1773184719102,0.002,2035.8,2035.4,0.4801305]
[1773184719801,0.4819462,2035.8,2035.4,2.1101305]
[1773184720006,0.4819462,2035.8,2035.5,1.70827872]
[1773184723997,0.002,2035.8,2035.6,0.4801305]
[1773184725992,0.002,2035.8,2035.6,1.70826217]
[1773184726310,0.002,2035.8,2035.7,0.4801305]
[1773184726500,0.002,2035.8,2035.6,1.22813167]
[1773184730288,0.002,2035.8,2035.6,1.71869669]
[1773184735928,0.002,2035.8,2035.6,0.49056502]
[1773184737131,0.002,2035.8,2035.6,0.01151664]
[1773184738306,0.002,2035.8,2035.5,1.71871974]
[1773184738507,0.49158958,2035.8,2035.5,1.71871974]
[1773184743234,0.48958958,2035.9,2035.5,1.71871974]
[1773184749654,1.7175909,2035.9,2035.5,1.71871974]
[1773184749818,0.48958958,2035.8,2035.3,0.001]
[1773184750126,5.87917526,2036.0,2035.4,0.49056502]
[1773184750127,1.71953348,2036.0,2035.4,0.49056502]
[1773184750525,1.71953348,2036.0,2035.7,0.001]
[1773184750732,1.71953348,2036.0,2035.7,1.93e-05]
[1773184751358,0.002,2035.9,2035.7,1.93e-05]
[1773184753658,0.49158958,2035.9,2035.7,1.93e-05]
[1773184754866,1.71954974,2035.9,2035.7,1.93e-05]
[1773184756751,1.71954974,2035.9,2035.6,0.49056502]
[1773184761764,0.4838582,2035.8,2035.5,0.001]
[1773184762865,0.4838582,2035.7,2035.3,0.001]
[1773184763237,0.4838582,2035.5,2035.3,0.001]
[1773184765338,1.71211324,2035.5,2035.3,0.001]
[1773184765639,1.22825504,2035.5,2035.3,0.001]
[1773184765840,0.4838582,2035.4,2035.3,0.001]
[1773184767766,1.712118,2035.4,2035.3,0.001]
[1773184770574,1.71202071,2035.6,2035.3,0.49677635]
[1773184770885,1.23008139,2035.7,2035.3,0.49677635]
[1773184771053,0.002,2035.7,2035.3,0.49677635]
[1773184771978,1.23008613,2035.7,2035.3,0.49677635]
[1773184772270,1.71394433,2035.7,2035.3,0.49677635]
[1773184773776,1.71394433,2035.7,2035.4,0.49577635]
[1773184774973,0.4838582,2035.6,2035.3,0.001]
[1773184776883,1.71200638,2035.6,2035.3,0.001]
[1773184777183,1.71200638,2035.6,2035.3,0.49677635]
[1773184777478,1.71200638,2035.6,2035.3,0.001]
[1773184777686,0.4838582,2035.5,2035.3,0.001]
[1773184778885,0.4858582,2035.5,2035.3,0.001]
[1773184781690,1.71405826,2035.5,2035.3,0.001]
[1773184781887,0.4838582,2035.4,2035.3,0.001]
[1773184783682,0.4838582,2035.2,2034.9,0.001]
[1773184783863,1.23020679,2035.5,2035.0,0.49577635]
[1773184784587,1.71406499,2035.5,2035.0,0.49577635]
[1773184785489,0.4838582,2035.4,2035.0,0.49577635]
[1773184786273,1.71217834,2035.3,2035.0,0.49577635]
[1773184789088,1.22832014,2035.3,2034.9,0.001]
[1773184789267,0.49507518,2035.2,2034.9,0.001]
[1773184791389,1.22844086,2035.1,2034.9,0.001]
[1773184791627,1.70152216,2035.1,2034.9,0.001]
[1773184792484,1.70152216,2035.1,2035.0,0.001]
[1773184795296,1.70152216,2035.1,2034.4,0.48968695]
[1773184795297,0.4730813,2035.0,2034.4,0.48968695]
[1773184795482,0.4730813,2035.0,2034.4,1.71854957]
[1773184796067,0.4730813,2035.0,2034.5,0.48968695]
[1773184796567,1.22844086,2035.1,2034.0,0.001]
[1773184796568,0.4730813,2034.5,2034.0,0.001]
[1773184796870,0.4730813,2034.5,2034.0,0.48968695]
[1773184797597,0.4730813,2034.3,2034.0,0.48968695]
[1773184797901,0.4730813,2034.1,2033.8,0.001]
[1773184798392,0.4730813,2034.1,2033.8,0.48968695]
[1773184799899,1.70210723,2034.2,2033.9,0.48868695]
[1773184800873,0.4730813,2034.1,2033.8,0.48968695]
[1773184801607,0.4730813,2034.7,2034.0,0.48868695]
[1773184801897,0.4730813,2034.9,2034.4,0.48868695]
[1773184802083,0.4730813,2034.9,2034.4,0.07308893]
[1773184802597,3.13109434,2035.0,2034.4,0.07308893]
[1773184802784,1.90255902,2035.0,2034.5,0.07308893]
[1773184803377,0.4730813,2034.9,2034.2,0.07308893]
[1773184804209,1.70170327,2034.8,2034.3,1.30201288]
[1773184804506,1.70170327,2034.8,2034.7,0.001]
[1773184809107,1.22862197,2034.8,2033.7,2.62e-06]
[1773184809310,0.4730813,2034.5,2033.8,1.30429078]
[1773184809618,0.4730813,2034.5,2033.8,1.30430883]
[1773184809985,0.4730813,2034.5,2033.8,0.001]
[1773184810931,0.4730813,2034.3,2033.8,0.001]
[1773184811936,0.4730813,2034.3,2033.8,0.07508893]
[1773184812297,0.4730813,2034.5,2034.1,0.07408893]
[1773184812533,0.4730813,2034.4,2033.8,1.04042345]
[1773184812711,0.4730813,2034.4,2033.9,0.07408893]
[1773184813830,1.70200525,2034.3,2033.9,1.30324179]
[1773184815528,1.70200525,2034.3,2033.9,0.07408893]
[1773184815833,1.70200525,2034.3,2033.9,1.30325021]
[1773184816832,0.4730813,2034.2,2033.8,1.23016732]
[1773184817828,0.4730813,2034.2,2033.8,0.07508893]
[1773184818044,1.70206566,2034.2,2034.1,0.001]
[1773184818644,1.70204289,2034.3,2034.1,0.001]
[1773184820019,0.48137035,2034.2,2033.9,0.001]
[1773184820334,0.48137035,2034.2,2033.9,0.07608893]
[1773184820920,0.48137035,2034.2,2033.9,0.001]
[1773184822652,1.71037799,2034.2,2033.9,0.001]
[1773184824046,0.48137035,2034.1,2033.9,0.001]
[1773184824936,1.71047556,2034.0,2033.9,0.001]
[1773184825127,1.71047556,2034.0,2033.7,2.62e-06]
[1773184825128,0.48137035,2033.9,2033.7,2.62e-06]
[1773184826958,1.22910521,2034.0,2033.7,0.07609155]
[1773184827129,1.71045943,2034.1,2033.7,0.07609155]
[1773184830027,0.48137035,2034.0,2033.7,2.62e-06]
[1773184830860,0.48137035,2034.0,2033.7,0.07609155]
[1773184831357,0.48137035,2034.0,2033.9,0.001]
[1773184831658,1.71247556,2034.0,2033.9,0.001]
[1773184833468,0.48137035,2033.9,2033.7,2.62e-06]
[1773184834026,0.48137035,2033.8,2033.7,2.62e-06]
[1773184836059,1.22922607,2033.8,2033.7,2.62e-06]
[1773184836642,1.71059642,2033.8,2033.7,2.62e-06]
[1773184836948,1.22922607,2033.8,2033.7,2.62e-06]
[1773184837152,0.48137035,2033.7,2033.4,0.07808893]
[1773184838666,1.71067884,2033.7,2033.4,0.07808893]
[1773184838958,0.48137035,2033.7,2033.4,0.07808893]
[1773184839165,0.48137035,2033.9,2033.5,0.07708893]
[1773184840237,0.48137035,2033.9,2033.4,0.001]
[1773184840656,1.71059642,2033.8,2033.4,1.30755486]
[1773184844075,0.48137035,2033.7,2033.4,0.07808893]
[1773184844274,1.71065866,2033.7,2033.4,0.07808893]
[1773184844477,0.48137035,2033.6,2033.4,0.001]
[1773184844767,1.22928831,2033.7,2033.4,0.001]
[1773184844969,1.71264033,2033.8,2033.4,1.30755505]
[1773184845977,1.23126998,2033.8,2033.4,0.07808893]
[1773184846143,1.22933555,2033.7,2033.4,0.001]
[1773184846348,0.48137035,2033.6,2033.4,0.001]
[1773184848353,1.71074342,2033.6,2033.4,0.001]
[1773184848555,1.69075817,2033.7,2033.4,0.07808893]
[1773184848878,0.46145553,2033.6,2033.1,0.001]
[1773184849056,0.46145553,2033.4,2033.0,0.01808893]
[1773184849257,0.49095553,2033.6,2033.1,0.98501572]
[1773184849484,0.49095553,2033.6,2033.2,0.01808893]
[1773184849983,0.49095553,2033.6,2032.8,1.2479197]
[1773184850178,0.49095553,2033.6,2032.9,0.01808893]
[1773184850384,0.49095553,2033.4,2032.9,1.24781897]
[1773184851953,0.49095553,2033.4,2032.7,1.24793812]
[1773184852384,0.49095553,2033.2,2032.7,1.24793972]
[1773184852984,0.49095553,2033.2,2032.7,0.01808893]
[1773184853684,0.49095553,2033.2,2032.7,1.24797909]
[1773184854202,0.49095553,2033.2,2032.7,0.01808893]
[1773184854487,0.49095553,2033.0,2032.7,0.01808893]
[1773184855066,0.49095553,2033.0,2032.7,1.24797028]
[1773184856188,0.49095553,2033.0,2032.7,0.01808893]
[1773184856569,0.49095553,2032.9,2032.5,1.24804322]
[1773184856774,0.49095553,2032.9,2032.6,0.01808893]
[1773184857484,0.49095553,2032.9,2032.4,1.23002956]
[1773184857679,0.49095553,2032.9,2032.7,0.001]
[1773184858585,1.72073459,2032.9,2032.7,0.001]
[1773184859856,0.49095553,2032.8,2032.7,0.001]
[1773184860286,0.49095553,2032.8,2032.4,0.001]
[1773184860457,0.49095553,2032.6,2032.4,0.001]
[1773184860659,1.7208468,2032.7,2032.4,0.01908893]
[1773184861981,0.49095553,2032.6,2032.4,0.001]
[1773184862165,0.49095553,2032.6,2032.0,1.66177472]
[1773184862383,0.49095553,2032.6,2032.0,1.66181566]
[1773184863010,0.49095553,2032.4,2032.0,0.4134139]
[1773184863167,0.49095553,2032.4,2031.8,1.23043171]
[1773184863502,0.49095553,2032.4,2031.7,1.24856948]
[1773184863700,0.49095553,2032.4,2031.8,0.01808893]
[1773184864676,0.49095553,2032.4,2031.6,0.01808893]
[1773184865492,0.49095553,2032.2,2031.7,1.24858555]
[1773184865698,0.49095553,2032.2,2031.8,0.01808893]
[1773184866897,0.49095553,2032.2,2031.6,1.24861102]
[1773184867072,0.49095553,2032.2,2031.3,0.01808893]
[1773184867472,0.49095553,2031.8,2031.0,0.01808893]
[1773184867690,0.49095553,2031.8,2031.0,1.24897901]
[1773184867691,0.49095553,2031.6,2031.0,1.24897901]
[1773184867997,0.49095553,2031.6,2030.8,0.01808893]
[1773184868492,0.49095553,2031.6,2030.9,0.01808893]
[1773184870102,0.49095553,2031.4,2031.0,1.23092072]
[1773184870396,0.49095553,2031.4,2030.4,6.5374103]
[1773184870397,0.49095553,2031.4,2030.8,0.01808893]
[1773184870693,0.49095553,2031.4,2030.6,0.01808893]
[1773184870894,0.49095553,2031.4,2030.7,0.01808893]
[1773184871267,0.49095553,2031.4,2030.9,0.01808893]
[1773184872279,0.49095553,2031.3,2030.5,4.94296906]
[1773184872568,0.49095553,2031.3,2030.6,0.01808893]
[1773184873899,0.49095553,2031.5,2030.9,0.01808893]
[1773184874270,1.23067834,2031.4,2030.9,1.24902759]
[1773184874471,1.72163387,2031.4,2030.9,1.24902759]
[1773184874703,1.23067834,2031.4,2030.9,1.24902759]
[1773184874994,1.72163387,2031.4,2030.9,1.24902759]
[1773184875399,0.49095553,2031.3,2030.9,0.01808893]
[1773184875572,0.49095553,2031.3,2030.7,1.24916037]
[1773184876004,0.49095553,2031.3,2030.5,1.24931276]
[1773184876188,0.49095553,2031.3,2030.5,2.86931276]
[1773184876792,0.49095553,2031.1,2030.6,0.01808893]
[1773184878198,0.49095553,2031.1,2030.5,2.85322383]
[1773184878507,0.49095553,2031.1,2030.5,2.87131276]
[1773184878904,0.49095553,2031.0,2030.5,2.87131276]
[1773184879103,0.49095553,2031.2,2030.7,0.01808893]
[1773184879774,0.49095553,2031.4,2030.9,0.01808893]
[1773184880610,0.49095553,2031.8,2031.2,0.9881216]
[1773184880794,0.49095553,2031.7,2031.3,1.23073893]
[1773184881401,0.49095553,2032.0,2031.3,1.24882786]
[1773184881608,0.49095553,2032.0,2031.3,1.23073893]
[1773184882181,0.49095553,2031.8,2031.1,2.87290835]
[1773184882378,0.49095553,2031.8,2030.9,1.24903296]
[1773184882680,0.49095553,2031.8,2030.9,0.01808893]
[1773184882887,0.49095553,2031.6,2030.7,6.56741045]
[1773184883287,0.49095553,2031.6,2030.9,0.01808893]
[1773184884209,0.49095553,2031.6,2030.8,0.0011]
[1773184885113,0.49095553,2031.4,2030.8,0.0011]
[1773184888226,0.49040553,2031.2,2030.5,0.0011]
[1773184888408,0.49040553,2031.0,2030.5,1.23229489]
[1773184889716,0.49040553,2031.0,2030.5,0.0011]
[1773184890210,1.23098133,2030.9,2030.5,0.0011]
[1773184890525,0.49040553,2030.9,2030.5,0.0011]
[1773184892229,1.23103848,2030.9,2030.5,0.0011]
[1773184892406,0.49040553,2030.8,2030.5,0.0011]
[1773184892805,0.49040553,2031.1,2030.5,0.02028893]
[1773184894136,0.49040553,2031.1,2030.5,0.0011]
[1773184894330,1.72132625,2031.0,2030.5,1.25151276]
[1773184895235,0.49040553,2031.0,2030.5,1.25151276]
[1773184895824,0.49040553,2031.2,2030.6,0.01918893]
[1773184896329,1.72123132,2031.2,2030.7,1.2502915]
[1773184896921,0.49040553,2031.5,2030.8,0.01918893]
[1773184897326,0.001,2030.9,2030.8,0.01918893]
[1773184898226,0.49040553,2031.4,2030.8,0.01918893]
[1773184899140,0.49040553,2031.4,2030.9,1.23098133]
[1773184899317,0.49040553,2031.4,2031.0,0.01918893]
[1773184899639,1.23062575,2031.5,2031.0,0.01918893]
[1773184900043,0.49040553,2031.4,2030.9,1.23098133]
[1773184900748,0.49040553,2031.4,2030.9,1.25017026]
[1773184901227,0.49040553,2031.4,2031.1,1.23086012]
[1773184901427,1.23059406,2031.6,2031.1,1.25004905]
[1773184901428,1.72099959,2031.6,2031.1,1.25004905]
[1773184903246,1.72099959,2031.6,2031.2,0.01918893]
[1773184903450,6.97040553,2031.8,2031.2,0.01918893]
[1773184903658,1.72086068,2031.8,2031.2,0.01918893]
[1773184906722,0.49040553,2031.7,2031.3,1.24992786]
[1773184907552,0.49040553,2031.7,2031.2,4.9230318]
[1773184907553,0.49040553,2031.7,2031.2,1.2307493]
[1773184908751,0.49040553,2031.7,2031.2,1.24993823]
[1773184908952,0.49040553,2031.6,2031.2,1.24993823]
[1773184909348,1.72086701,2031.8,2031.3,0.01918893]
[1773184910125,0.49040553,2031.8,2031.3,0.01918893]
[1773184911338,0.002,2031.5,2031.4,1.23067834]
[1773184911646,0.002,2031.5,2031.4,1.24986727]
[1773184912153,0.002,2031.5,2031.4,0.01918893]
[1773184912735,0.49240553,2031.5,2031.2,1.23075043]
[1773184916763,0.49240553,2031.5,2031.2,1.24993936]
[1773184918257,0.49040553,2031.4,2031.0,2.85692072]
[1773184918870,0.49040553,2031.3,2031.0,2.85688098]
[1773184920124,0.49040553,2031.3,2031.0,1.626]
[1773184920757,0.49040553,2031.3,2031.0,2.85689396]
[1773184925645,0.49040553,2031.3,2031.1,0.001]
[1773184927865,1.72302528,2031.5,2031.1,0.02018893]
[1773184928339,0.49040553,2031.4,2031.1,0.02018893]
[1773184928536,0.002,2031.5,2031.1,0.02018893]
[1773184928763,0.002,2031.5,2031.3,0.01918893]
[1773184929284,1.68976257,2031.9,2031.4,0.45043382]
[1773184929762,0.45933711,2031.8,2031.4,0.45043382]
[1773184929934,0.45933711,2031.8,2031.3,1.627]
[1773184930434,0.45933711,2031.8,2031.3,2.07743382]
[1773184930643,0.45933711,2031.8,2031.3,1.627]
[1773184930842,0.45933711,2031.8,2031.5,0.45043382]
[1773184931057,1.23041894,2031.9,2031.5,0.45043382]
[1773184931758,0.45933711,2031.9,2031.5,0.45043382]
[1773184931967,1.69167643,2032.0,2031.5,0.45043382]
[1773184932542,0.46133711,2032.0,2031.5,0.45043382]
[1773184932846,0.002,2032.0,2031.8,0.45043382]
[1773184933071,0.002,2032.0,2031.8,0.00525513]
[1773184936177,0.002,2032.2,2031.9,0.06441577]
[1773184936763,0.002,2032.2,2032.0,1.23031496]
[1773184936976,0.002,2032.2,2031.9,1.29474453]
[1773184937779,0.002,2032.2,2032.0,0.06441577]
[1773184939553,0.481198,2032.2,2031.9,1.23033442]
[1773184940056,0.481198,2032.2,2031.8,2.86038694]
[1773184940451,0.481198,2032.2,2031.6,2.86150869]
[1773184940651,0.001,2032.0,2031.6,2.86150869]
[1773184940851,0.480198,2032.0,2031.6,2.92592446]
[1773184941084,0.480198,2032.0,2031.7,0.06441577]
[1773184943995,0.479198,2031.8,2031.4,2.86163906]
[1773184945180,0.479198,2031.8,2031.1,1.29625351]
[1773184945513,0.479198,2031.7,2031.1,0.001]
[1773184945662,3.56818661,2031.8,2031.1,0.001]
[1773184945663,0.479198,2031.5,2031.1,0.001]
[1773184946186,0.479198,2031.3,2031.1,0.001]
[1773184947291,0.479198,2031.3,2030.9,0.06641577]
[1773184947590,1.23067834,2031.4,2030.9,0.06641577]
[1773184947784,1.70982209,2031.5,2030.9,0.06641577]
[1773184947986,0.479198,2031.5,2031.1,0.06541577]
[1773184948597,1.70969661,2031.7,2031.1,0.06541577]
[1773184949098,0.479198,2031.7,2031.1,0.06541577]
[1773184949338,1.70969775,2031.7,2031.1,0.06541577]
[1773184949488,0.479198,2031.6,2031.1,0.06541577]
[1773184951286,0.479198,2031.5,2030.9,0.06641577]
[1773184951489,0.479198,2031.5,2030.9,0.001]
[1773184953376,0.479198,2031.5,2031.3,0.001]
[1773184953575,0.479198,2031.3,2031.0,0.001]
[1773184955812,0.479198,2031.1,2031.0,0.001]
[1773184958617,0.479198,2031.3,2031.0,0.001]
[1773184960734,0.479198,2031.6,2031.0,0.001]
[1773184961018,0.479198,2031.5,2031.0,0.001]
[1773184961192,0.479198,2031.5,2031.0,0.06641577]
[1773184963522,0.479198,2031.3,2031.0,0.001]
[1773184966105,1.70997155,2031.3,2031.0,0.001]
[1773184966325,0.479198,2031.2,2031.0,0.001]
[1773184967231,0.479198,2031.2,2031.1,0.0011]
[1773184967926,0.479198,2031.2,2030.9,1.23198133]
[1773184967927,0.479198,2031.2,2030.9,0.001]
[1773184968429,0.49704253,2031.1,2030.9,0.001]
[1773184970436,0.46674211,2031.0,2030.9,0.001]
[1773184973931,1.69766283,2031.0,2030.9,0.001]
[1773184975337,0.46674211,2031.0,2030.9,0.001]
[1773184975541,1.69766283,2031.0,2030.9,0.001]
[1773184977718,0.46674211,2031.0,2030.9,0.001]
[1773184977916,1.69766283,2031.0,2030.9,0.001]
[1773184978209,0.46674211,2031.0,2030.9,0.001]
[1773184978815,1.69766283,2031.0,2030.9,0.001]
[1773184979046,1.6984833,2031.3,2030.9,0.06751577]
[1773184980439,0.001,2031.3,2031.1,0.06761577]
[1773184981716,0.001,2031.3,2031.2,0.06651577]
[1773184984540,0.46774211,2031.3,2031.1,0.0011]
[1773184988348,1.69848567,2031.3,2031.1,0.0011]
[1773184989260,0.46774211,2031.3,2031.1,0.0011]
[1773184993450,0.46774211,2031.3,2031.2,0.001]
[1773184994547,1.69848104,2031.3,2031.2,0.001]
[1773184996450,0.001,2031.3,2031.2,0.06751577]
[1773184996819,0.001,2031.3,2031.2,0.001]
[1773184997019,0.46774211,2031.3,2031.2,0.001]
[1773185003259,1.69255142,2031.5,2031.2,0.47414377]
[1773185003428,1.23061856,2031.5,2031.2,0.47414377]
[1773185003753,1.69449183,2031.6,2031.2,0.47414377]
[1773185004060,1.69449183,2031.6,2031.2,1.70491043]
[1773185004456,1.69449183,2031.6,2031.2,0.47414377]
[1773185004633,0.46193286,2031.5,2031.2,0.47414377]
[1773185004973,0.46193286,2031.5,2031.2,1.70491429]
[1773185005356,0.46193286,2031.5,2031.2,1.75414627]
[1773185005853,0.46193286,2031.5,2031.2,0.52337575]
[1773185006160,0.46193286,2031.5,2031.2,1.75415561]
[1773185006366,1.69449183,2031.6,2031.2,1.75415561]
[1773185007242,0.002,2031.6,2031.3,0.47314377]
[1773185007642,1.69234053,2031.9,2031.3,0.47314377]
[1773185007837,1.69234053,2031.9,2031.3,1.626]
[1773185008149,0.002,2031.5,2031.4,0.47314377]
[1773185008333,0.002,2031.5,2031.4,1.70382211]
[1773185009391,0.46393286,2031.8,2031.5,0.47314377]
[1773185009392,0.002,2031.8,2031.5,0.47314377]
[1773185010239,0.46393286,2031.8,2031.5,0.47314377]
[1773185012757,1.70043957,2031.7,2031.3,1.6871141]
[1773185012962,0.46994295,2031.6,2031.3,1.6871141]
[1773185013258,0.46994295,2031.7,2031.3,1.6871141]
[1773185014136,0.46994295,2031.7,2031.4,0.0601141]
[1773185014545,0.002,2031.8,2031.4,0.0601141]
[1773185015065,0.002,2031.8,2031.6,0.0601141]
[1773185015539,0.47094295,2032.0,2031.6,0.0601141]
[1773185016961,0.46994295,2031.9,2031.6,1.29064854]
[1773185018666,0.46994295,2031.9,2031.6,0.0601141]
[1773185019338,0.46994295,2031.9,2031.6,1.29066618]
[1773185019861,0.46994295,2031.9,2031.6,0.0601141]
[1773185020364,1.70032337,2031.9,2031.6,0.0601141]
[1773185021062,1.70032337,2031.9,2031.2,4.92416111]
[1773185021063,0.46994295,2031.8,2031.2,0.001]
[1773185021237,0.47094295,2031.8,2031.3,6.15426644]
[1773185021432,0.46994295,2031.6,2031.3,6.05524483]
[1773185021639,0.46994295,2031.6,2031.3,0.0011]
[1773185023668,0.46994295,2031.4,2031.3,0.0011]
[1773185027477,0.46994295,2031.5,2031.3,0.0011]
[1773185027678,0.46994295,2031.5,2031.3,6.05524483]
[1773185027872,0.46994295,2031.7,2031.4,6.11425893]
[1773185028181,0.47094295,2031.8,2031.5,0.0601141]
[1773185028357,0.47094295,2031.8,2031.5,6.11425893]
[1773185028549,0.47094295,2031.8,2031.5,6.05414483]
[1773185029655,1.70140379,2031.8,2031.4,1.29077185]
[1773185029867,1.70140379,2031.8,2031.5,6.05414483]
[1773185030387,1.70140379,2031.8,2031.4,1.29077185]
[1773185030388,0.001,2031.8,2031.6,6.11425893]
[1773185030680,0.47169203,2031.8,2031.5,6.11425893]
[1773185030842,0.47069203,2031.7,2031.5,6.05414483]
[1773185031891,0.47069203,2031.7,2031.4,1.23066948]
[1773185032174,0.001,2032.0,2031.4,2.20033881]
[1773185032361,0.001,2032.0,2031.7,0.0601141]
[1773185032871,0.001,2032.0,2031.8,6.05314483]
[1773185033267,0.001,2032.0,2031.8,6.11325893]
[1773185034155,0.001,2032.0,2031.9,6.05314483]
[1773185034476,0.70963014,2032.1,2031.9,6.05314483]
[1773185034648,0.71163014,2032.1,2031.9,6.05314483]
[1773185034848,1.94188758,2032.1,2031.9,6.05314483]
[1773185035078,0.71163014,2032.1,2031.9,6.05314483]
[1773185035278,1.94188567,2032.1,2031.9,6.05314483]
[1773185035475,1.94188857,2032.1,2031.9,6.05314483]
[1773185036353,0.71163014,2032.1,2031.9,6.05314483]
[1773185036552,1.94188989,2032.1,2031.9,6.05314483]
[1773185037794,0.71163014,2032.1,2031.9,6.05314483]
[1773185038280,0.24093811,2032.1,2031.9,7.28350735]
[1773185038451,0.24093811,2032.1,2031.9,6.05314483]
[1773185038652,0.24093811,2032.1,2031.9,7.28352031]
[1773185039180,0.24093811,2032.1,2031.9,6.05314483]
[1773185039886,0.24093811,2032.1,2031.9,7.28351889]
[1773185040269,0.71163014,2032.1,2031.9,6.05314483]
[1773185041076,0.47069203,2032.0,2031.9,6.05314483]
[1773185042170,0.47069203,2032.0,2031.5,2.92468791]
[1773185042570,0.47069203,2031.9,2031.6,0.0601141]
[1773185043080,0.47069203,2031.9,2031.6,1.29066045]
[1773185044258,0.47069203,2032.0,2031.6,1.29066045]
[1773185044458,0.47069203,2032.0,2031.7,6.11325893]
[1773185044779,0.47069203,2032.0,2031.8,1.23043606]
[1773185045081,0.47069203,2032.0,2031.7,7.34371236]
[1773185045252,0.47069203,2032.0,2031.8,6.05314483]
[1773185046184,0.47069203,2031.9,2031.6,1.2305032]
[1773185046387,0.47069203,2031.9,2031.7,6.05314483]
[1773185046568,1.94192971,2032.1,2031.7,6.11325893]
[1773185046918,0.24093811,2032.1,2031.8,7.34364908]
[1773185047051,0.24093811,2032.1,2031.9,0.0601141]
[1773185048480,0.47069203,2032.0,2031.6,0.0601141]
[1773185048680,0.47069203,2032.0,2031.7,1.635]
[1773185049293,0.47069203,2031.9,2031.8,6.05314483]
[1773185049455,0.47069203,2031.9,2031.6,1.2305524]
[1773185052191,1.94193168,2032.1,2031.7,0.0601141]
[1773185052391,0.47069203,2032.0,2031.7,6.11325893]
[1773185052894,1.94193168,2032.1,2031.8,6.05314483]
[1773185053564,1.70299357,2032.1,2031.8,6.05314483]
[1773185054474,0.47269203,2032.1,2031.8,6.05314483]
[1773185054790,1.7029526,2032.1,2031.8,6.05314483]
[1773185054963,0.47069203,2032.0,2031.8,6.05314483]
[1773185057965,0.002,2032.1,2031.9,6.05314483]
[1773185058295,0.002,2032.1,2031.9,6.11325893]
[1773185059692,0.002,2032.1,2031.9,0.0601141]
[1773185059991,0.002,2032.1,2031.9,1.29046146]
[1773185060196,0.002,2032.1,2031.9,0.0601141]
[1773185060670,0.002,2032.1,2032.0,6.05314483]
[1773185060876,0.49257552,2032.3,2032.0,6.11125893]
[1773185061073,0.49257552,2032.3,2032.1,6.05114483]
[1773185061672,0.49257552,2032.3,2032.1,7.281363]
[1773185062278,0.49257552,2032.3,2032.1,6.05114483]
[1773185062483,0.49257552,2032.3,2032.1,7.28139376]
[1773185063903,0.002,2032.4,2032.1,7.28139376]
[1773185063904,0.002,2032.4,2032.2,6.11125893]
[1773185064304,0.002,2032.4,2032.2,6.05114483]
[1773185064608,0.49457552,2032.4,2032.2,6.05114483]
[1773185067667,0.49457552,2032.4,2032.3,6.05114483]
[1773185067668,0.002,2032.4,2032.3,6.05114483]
[1773185067918,1.23189201,2032.7,2032.4,5.63143492]
[1773185068117,1.23189201,2032.7,2032.4,0.0601141]
[1773185068402,1.72446753,2032.7,2032.4,0.0601141]
[1773185068917,0.49457552,2032.7,2032.5,5.57132082]
[1773185069451,0.002,2032.7,2032.5,6.86142895]
[1773185069697,0.002,2032.7,2032.6,5.57132082]
[1773185070482,0.002,2032.7,2032.6,5.63143492]
[1773185071280,0.84309774,2032.9,2032.6,5.63143492]
[1773185071485,0.84309774,2032.9,2032.7,6.80119351]
[1773185071686,0.35052222,2032.9,2032.7,5.63143492]
[1773185072093,0.35052222,2032.9,2032.7,5.57132082]
[1773185072807,0.35052222,2032.9,2032.8,5.57132082]
[1773185074408,0.30615026,2032.9,2032.8,5.57132082]
[1773185075599,2.02849605,2032.9,2032.8,5.37132082]
[1773185075904,0.79872578,2032.9,2032.8,5.37132082]
[1773185077380,0.30615026,2032.9,2032.8,5.37132082]
[1773185077707,0.30615026,2032.9,2032.8,6.86126569]
[1773185078105,0.27332898,2032.9,2032.8,6.86126569]
[1773185078312,1.72214476,2033.3,2032.9,0.2601141]
[1773185078607,0.49257552,2033.3,2032.9,1.48982795]
[1773185078808,1.72211372,2033.3,2032.9,1.48982795]
[1773185079392,1.72211372,2033.3,2033.0,5.1049957]
[1773185079989,0.49257552,2033.3,2033.0,5.1049957]
[1773185080218,0.49257552,2033.3,2033.1,5.1049957]
[1773185080386,1.72210853,2033.3,2033.1,5.1049957]
[1773185080781,0.49257552,2033.2,2033.1,5.1049957]
[1773185080987,0.49257552,2033.2,2033.1,4.9049957]
[1773185082105,0.49457552,2033.4,2033.1,4.9049957]
[1773185082305,1.72405568,2033.4,2033.2,4.9049957]
[1773185082505,1.72405568,2033.4,2033.1,4.9049957]
[1773185082708,0.49457552,2033.4,2033.1,4.9049957]
[1773185082908,1.72405704,2033.4,2033.1,4.9049957]
[1773185083811,0.49257552,2033.3,2033.1,4.9049957]
[1773185085218,1.72211981,2033.3,2033.1,4.9049957]